bitfinex/quotes_BTCUSD_20220103
["timestamp","ask_amount","ask_price","bid_price","bid_amount"]
[1641203433255,0.05327278,46926.0,46925.0,1.55594511]
[1641203433457,0.05327278,46926.0,46925.0,2.86153878]
[1641203433658,0.05327278,46926.0,46925.0,2.18153878]
[1641203433855,0.05327278,46926.0,46925.0,1.85326267]
[1641203434660,0.05327278,46926.0,46925.0,1.90326267]
[1641203435695,0.05327278,46926.0,46925.0,1.85326267]
[1641203435897,0.05327278,46926.0,46925.0,1.75326267]
[1641203436697,0.05327278,46926.0,46925.0,1.25636713]
[1641203436896,0.05327278,46926.0,46925.0,1.35636713]
[1641203437498,0.05327278,46926.0,46925.0,1.8532733]
[1641203438699,0.05327278,46926.0,46925.0,1.7532733]
[1641203439098,0.05327278,46926.0,46925.0,0.54404443]
[1641203439362,0.05327278,46926.0,46925.0,0.497669]
[1641203439862,0.05327278,46926.0,46925.0,0.449869]
[1641203440059,0.05327278,46926.0,46920.0,0.00387505]
[1641203440861,0.05327278,46926.0,46925.0,0.71252882]
[1641203441361,0.05327278,46926.0,46924.0,0.81908323]
[1641203441560,0.05327278,46926.0,46925.0,0.343327]
[1641203442161,0.05327278,46926.0,46924.0,0.76580623]
[1641203442367,0.29519568,46925.0,46924.0,0.71252882]
[1641203442763,0.29519568,46925.0,46923.0,0.71252882]
[1641203443205,0.27515609,46924.0,46921.0,0.71252882]
[1641203443402,0.32354685,46923.0,46921.0,0.71252882]
[1641203443602,0.63056226,46922.0,46921.0,0.71252882]
[1641203443803,0.68056226,46922.0,46921.0,0.04637543]
[1641203445303,1.13513615,46922.0,46921.0,0.04637543]
[1641203446205,0.83892005,46922.0,46921.0,0.04637543]
[1641203447463,1.13775032,46922.0,46921.0,0.04637543]
[1641203448454,0.83892005,46922.0,46921.0,0.04637543]
[1641203449854,0.50457389,46922.0,46921.0,0.04637543]
[1641203450059,0.50457389,46922.0,46921.0,0.38973343]
[1641203450710,0.50457389,46922.0,46921.0,0.48973343]
[1641203450909,0.50457389,46922.0,46921.0,1.20234433]
[1641203451608,0.05327278,46926.0,46923.0,0.053277]
[1641203451808,0.05327278,46926.0,46924.0,0.343336]
[1641203452008,0.05327278,46926.0,46921.0,0.8126109]
[1641203452209,0.05327278,46926.0,46922.0,0.343351]
[1641203452909,0.05327278,46926.0,46922.0,1.05558337]
[1641203453108,0.05327278,46926.0,46923.0,0.053276]
[1641203453109,0.45762406,46925.0,46923.0,0.053276]
[1641203455650,0.45762406,46925.0,46924.0,0.343337]
[1641203458304,0.45762406,46925.0,46924.0,0.93690255]
[1641203459107,0.45762406,46925.0,46924.0,0.343337]
[1641203459505,0.05327278,46926.0,46924.0,0.78982306]
[1641203459711,0.00883686,46936.0,46926.0,1.58]
[1641203459904,0.00883686,46936.0,46931.0,0.00126638]
[1641203459905,0.00873686,46936.0,46931.0,0.00126638]
[1641203460106,0.00873686,46936.0,46935.0,0.343243]
[1641203460407,0.0004,46936.0,46935.0,0.462183]
[1641203460605,0.0023,46939.0,46936.0,1.04041589]
[1641203460801,0.0023,46939.0,46937.0,0.39123694]
[1641203461205,0.0023,46939.0,46937.0,0.49123694]
[1641203461603,0.0023,46939.0,46937.0,0.48671007]
[1641203462258,0.0023,46939.0,46937.0,0.48235328]
[1641203465367,0.0023,46939.0,46937.0,0.48214034]
[1641203466207,0.0023,46939.0,46937.0,0.52851577]
[1641203466407,0.0023,46939.0,46937.0,0.86056182]
[1641203466604,0.0023,46939.0,46937.0,0.52851577]
[1641203467006,0.0023,46939.0,46937.0,0.85417475]
[1641203467608,0.0023,46939.0,46937.0,1.44609529]
[1641203469355,0.0002,46942.0,46937.0,1.44609529]
[1641203469356,0.37785561,46949.0,46946.0,0.05325196]
[1641203469558,0.37785561,46949.0,46944.0,0.27182702]
[1641203469955,0.42785561,46949.0,46944.0,0.27182702]
[1641203470156,0.42785561,46949.0,46944.0,0.2716915]
[1641203470760,0.42785561,46949.0,46944.0,0.3249465]
[1641203470956,0.053255,46948.0,46944.0,0.3249465]
[1641203471156,0.05,46949.0,46944.0,0.2716915]
[1641203471359,0.0004,46950.0,46944.0,0.2716915]
[1641203471757,0.0004,46950.0,46943.0,0.00127828]
[1641203471958,0.0004,46950.0,46944.0,0.053254]
[1641203471959,0.053255,46948.0,46944.0,0.053254]
[1641203472357,0.0004,46950.0,46944.0,0.053254]
[1641203473007,0.053255,46948.0,46943.0,0.59172425]
[1641203474202,0.38860709,46945.0,46944.0,0.05325384]
[1641203475911,0.69140899,46945.0,46942.0,0.59172425]
[1641203476311,0.38860709,46945.0,46940.0,0.59172425]
[1641203477065,0.053261,46944.0,46939.0,0.64498355]
[1641203478264,0.053261,46944.0,46941.0,0.05325757]
[1641203479364,0.38860709,46945.0,46941.0,0.05325757]
[1641203480633,0.44186709,46945.0,46941.0,0.05325757]
[1641203481034,0.38860709,46945.0,46941.0,0.05325757]
[1641203481434,0.59721861,46944.0,46940.0,0.59172425]
[1641203481733,0.29623806,46943.0,46940.0,0.59172425]
[1641203481936,0.3563128,46944.0,46939.0,0.64498456]
[1641203482134,0.29752931,46943.0,46934.0,0.10652193]
[1641203482532,0.053262,46941.0,46934.0,0.10652193]
[1641203482735,0.30489581,46939.0,46934.0,0.10652193]
[1641203482932,0.30489581,46939.0,46935.0,0.05326265]
[1641203483336,0.053262,46941.0,46937.0,0.053262]
[1641203483538,0.29752931,46943.0,46937.0,0.053262]
[1641203483736,0.29680511,46943.0,46937.0,0.053262]
[1641203484474,0.05326,46941.0,46937.0,0.053262]
[1641203484676,0.31164544,46942.0,46939.0,0.05325929]
[1641203485076,0.31164544,46942.0,46939.0,0.10651929]
[1641203485475,0.053261,46940.0,46939.0,0.05325929]
[1641203485675,0.053261,46940.0,46939.0,0.38757429]
[1641203489414,0.053261,46940.0,46939.0,0.38733368]
[1641203492661,0.053261,46940.0,46939.0,0.334315]
[1641203501165,0.053261,46940.0,46937.0,0.69824775]
[1641203501668,0.053261,46940.0,46937.0,0.1065235]
[1641203501866,0.053261,46940.0,46938.0,0.053261]
[1641203502067,0.053257,46944.0,46939.0,0.334324]
[1641203502267,0.053257,46944.0,46941.0,0.05325483]
[1641203502467,0.0049,46949.0,46941.0,0.05325483]
[1641203502667,0.0049,46949.0,46938.0,0.10382]
[1641203502668,0.34414922,46951.0,46938.0,0.10382]
[1641203502869,0.00875217,46950.0,46938.0,0.15382]
[1641203503116,0.00875217,46950.0,46943.0,0.053253]
[1641203503117,0.41273421,46945.0,46943.0,0.053253]
[1641203503518,0.053253,46948.0,46946.0,0.05325281]
[1641203503715,0.00875217,46950.0,46944.0,0.59198794]
[1641203504318,0.0004,46950.0,46946.0,0.053252]
[1641203504713,0.0004,46950.0,46946.0,0.10650309]
[1641203504916,0.36495697,46949.0,46946.0,0.05325109]
[1641203505118,0.053252,46948.0,46946.0,0.05325109]
[1641203505317,0.36495697,46949.0,46946.0,0.05325109]
[1641203506418,6.019e-05,46948.0,46946.0,0.05325109]
[1641203506869,6.019e-05,46948.0,46947.0,0.053251]
[1641203513475,6.019e-05,46948.0,46946.0,0.05325109]
[1641203514078,0.053255,46947.0,46945.0,0.59198794]
[1641203514677,0.053255,46947.0,46944.0,0.59198794]
[1641203515279,0.053255,46947.0,46943.0,0.59198794]
[1641203515879,0.254129,46946.0,46943.0,0.59198794]
[1641203516082,0.106514,46945.0,46943.0,0.59198794]
[1641203516483,0.106514,46945.0,46942.0,0.59198794]
[1641203516882,0.106514,46945.0,46941.0,0.59198794]
[1641203517282,0.053261,46944.0,46941.0,0.59198794]
[1641203517484,0.106521,46944.0,46941.0,0.59198794]
[1641203517883,0.10326,46944.0,46940.0,0.59198794]
[1641203518705,0.10326,46944.0,46939.0,0.64524794]
[1641203518907,0.05326,46943.0,46939.0,0.64524794]
[1641203519107,0.053261,46941.0,46939.0,0.59198794]
[1641203519306,0.103261,46941.0,46939.0,0.59198794]
[1641203519506,0.103261,46941.0,46940.0,0.334308]
[1641203520508,0.05,46941.0,46940.0,0.97955535]
[1641203521107,0.05,46941.0,46940.0,1.30272191]
[1641203521308,0.05,46941.0,46940.0,0.97955535]
[1641203521769,0.05,46943.0,46940.0,0.38756741]
[1641203521964,0.053255,46945.0,46941.0,0.053257]
[1641203521965,0.23592545,46945.0,46941.0,0.053257]
[1641203522165,0.23592545,46945.0,46941.0,0.58967729]
[1641203522370,0.23592545,46945.0,46942.0,0.334298]
[1641203522666,0.053259,46945.0,46942.0,0.334298]
[1641203522865,0.36186285,46943.0,46942.0,0.38755528]
[1641203527615,0.106511,46948.0,46942.0,0.38755528]
[1641203527816,0.0004,46950.0,46942.0,0.85468794]
[1641203528017,0.0004,46950.0,46945.0,0.053252]
[1641203528616,0.32417585,46948.0,46945.0,0.053252]
[1641203528817,0.37417585,46948.0,46945.0,0.053252]
[1641203529365,0.053251,46947.0,46945.0,0.053252]
[1641203529568,0.053251,46947.0,46946.0,0.05325259]
[1641203529769,0.37417585,46948.0,46946.0,0.05325259]
[1641203531269,0.42742885,46948.0,46946.0,0.05325259]
[1641203531667,0.42742885,46948.0,46946.0,0.10650459]
[1641203532068,0.42742885,46948.0,46945.0,0.58967729]
[1641203532269,0.42742885,46948.0,46946.0,0.58967729]
[1641203532572,0.30409479,46947.0,46944.0,0.58967729]
[1641203532768,0.42742885,46948.0,46944.0,0.68967729]
[1641203533017,0.42742885,46948.0,46944.0,0.73967729]
[1641203533209,0.42742885,46948.0,46945.0,0.05325099]
[1641203533510,0.42742885,46948.0,46945.0,0.64292828]
[1641203534009,0.42742885,46948.0,46945.0,0.74292828]
[1641203534812,0.42742885,46948.0,46946.0,0.053252]
[1641203535316,0.25346504,46947.0,46945.0,0.58967729]
[1641203535716,0.30672204,46947.0,46945.0,0.58967729]
[1641203535915,0.30672204,46947.0,46944.0,0.58967729]
[1641203536413,0.30672204,46947.0,46943.0,0.58967729]
[1641203537456,0.053257,46946.0,46943.0,0.58967729]
[1641203537655,0.053257,46946.0,46944.0,0.58967729]
[1641203537857,0.053257,46946.0,46945.0,0.334271]
[1641203538054,0.103257,46946.0,46945.0,0.334271]
[1641203538655,0.103257,46946.0,46945.0,0.92394829]
[1641203540920,0.103257,46946.0,46945.0,0.334271]
[1641203541321,0.103257,46946.0,46945.0,0.92394829]
[1641203541520,0.05,46946.0,46945.0,0.92394829]
[1641203541721,0.05,46946.0,46945.0,0.334271]
[1641203541921,0.05,46946.0,46944.0,0.58967729]
[1641203542123,0.05,46946.0,46944.0,0.58782822]
[1641203542324,0.09042951,46946.0,46944.0,0.58782822]
[1641203542724,0.09042951,46946.0,46942.0,0.71038553]
[1641203542725,0.103257,46946.0,46942.0,0.71038553]
[1641203542925,0.103257,46946.0,46941.0,0.71038553]
[1641203543227,0.05326,46944.0,46941.0,0.71038553]
[1641203543425,0.10326,46944.0,46942.0,0.334295]
[1641203544269,0.156519,46944.0,46942.0,0.334295]
[1641203545670,0.156519,46944.0,46942.0,0.44080903]
[1641203546473,0.103259,46944.0,46942.0,0.44080903]
[1641203546781,0.0004,46950.0,46948.0,0.00120243]
[1641203546973,0.0004,46950.0,46949.0,0.585894]
[1641203547172,0.0004,46950.0,46949.0,0.685894]
[1641203547674,0.0004,46950.0,46949.0,0.73226943]
[1641203547875,0.0004,46950.0,46949.0,0.52841543]
[1641203548327,0.0004,46950.0,46949.0,1.73726986]
[1641203549129,0.0504,46950.0,46949.0,1.73726986]
[1641203549530,0.05046143,46950.0,46949.0,1.73726986]
[1641203550133,0.00046143,46950.0,46949.0,1.73726986]
[1641203550333,0.00046143,46950.0,46949.0,1.98586713]
[1641203551536,0.05046143,46950.0,46949.0,1.98586713]
[1641203554154,0.00046143,46950.0,46949.0,1.98586713]
[1641203557209,0.00046143,46950.0,46949.0,2.18975688]
[1641203558009,0.00046143,46950.0,46949.0,1.98586713]
[1641203560274,0.00046143,46950.0,46949.0,1.58946986]
[1641203560472,0.00046143,46950.0,46949.0,1.54309443]
[1641203560473,0.05052286,46950.0,46949.0,1.54309443]
[1641203560672,0.05052286,46950.0,46949.0,0.38061543]
[1641203564028,0.05052286,46950.0,46949.0,0.48061543]
[1641203564234,0.00052286,46950.0,46949.0,0.48061543]
[1641203564827,0.00052286,46950.0,46949.0,1.68963725]
[1641203567766,0.00052286,46950.0,46949.0,1.68852225]
[1641203573014,0.00052286,46950.0,46949.0,1.58852225]
[1641203575163,0.00052286,46950.0,46949.0,0.37950043]
[1641203575763,0.00052286,46950.0,46949.0,0.333125]
[1641203575968,0.04670026,46949.0,46945.0,0.00828799]
[1641203576167,0.00052286,46950.0,46945.0,0.00828799]
[1641203576168,0.03839404,46948.0,46945.0,0.00828799]
[1641203576367,0.04943293,46947.0,46945.0,0.00828799]
[1641203576564,0.0348346,46946.0,46945.0,0.00828799]
[1641203576763,0.3721169,46947.0,46945.0,0.00828799]
[1641203576963,0.25210329,46946.0,46945.0,0.00828799]
[1641203577168,0.63979085,46946.0,46945.0,0.00828799]
[1641203577766,0.25210329,46946.0,46945.0,0.00828799]
[1641203578034,0.05,46947.0,46945.0,0.00828799]
[1641203578215,0.05,46947.0,46946.0,0.333152]
[1641203578413,0.05326,46948.0,46946.0,0.333152]
[1641203580315,0.05326,46948.0,46946.0,0.386401]
[1641203580514,0.05326,46948.0,46946.0,0.486401]
[1641203582979,0.05326,46948.0,46946.0,0.386401]
[1641203584077,0.29944995,46948.0,46946.0,0.386401]
[1641203584278,0.05326,46948.0,46946.0,0.386401]
[1641203585279,0.36486396,46948.0,46946.0,0.386401]
[1641203585524,0.41486396,46948.0,46946.0,0.386401]
[1641203585818,0.41486396,46948.0,46946.0,0.053249]
[1641203587616,0.05326,46948.0,46946.0,0.053249]
[1641203587818,0.05326,46948.0,46947.0,0.333145]
[1641203588018,0.05326,46948.0,46947.0,0.433145]
[1641203588420,0.053246,46949.0,46947.0,0.433145]
[1641203588620,0.0004,46950.0,46948.0,0.053243]
[1641203588822,0.0004,46950.0,46949.0,0.333128]
[1641203589020,0.0004,46950.0,46949.0,0.433128]
[1641203591066,0.0004,46950.0,46949.0,0.74674855]
[1641203591266,0.0004,46950.0,46949.0,0.74673507]
[1641203591471,0.0004,46950.0,46949.0,1.51673507]
[1641203591663,0.0004,46950.0,46949.0,0.74673507]
[1641203592064,0.00046143,46950.0,46949.0,0.74673507]
[1641203592364,0.00046143,46950.0,46949.0,0.7931105]
[1641203592565,0.00046143,46950.0,46949.0,2.4209105]
[1641203592774,2.286e-05,46952.0,46951.0,0.386344]
[1641203593045,0.0003,46961.0,46953.0,0.33432954]
[1641203593238,0.0003,46961.0,46954.0,0.71557377]
[1641203593533,0.0003,46961.0,46954.0,0.71286296]
[1641203593736,0.0003,46961.0,46954.0,2.02181455]
[1641203593936,0.0003,46961.0,46954.0,1.68841302]
[1641203594341,0.0003,46956.0,46954.0,1.68841302]
[1641203594636,0.0003,46956.0,46954.0,0.47946143]
[1641203594838,0.0003,46956.0,46954.0,0.7988205]
[1641203596240,0.0003,46956.0,46954.0,0.47946143]
[1641203596781,0.0003,46956.0,46954.0,1.18425667]
[1641203596983,0.0003,46956.0,46954.0,0.80008047]
[1641203597784,0.0003,46956.0,46954.0,0.47105669]
[1641203598386,0.0003,46956.0,46954.0,1.17580087]
[1641203598785,0.0003,46956.0,46954.0,1.49315292]
[1641203599186,0.0003,46956.0,46954.0,0.78840874]
[1641203599386,0.0003,46956.0,46954.0,1.99721491]
[1641203599788,0.0003,46956.0,46954.0,0.78840874]
[1641203599989,0.0002,46955.0,46954.0,0.83620874]
[1641203600190,0.0002,46955.0,46954.0,1.62766286]
[1641203601428,0.0002,46955.0,46954.0,1.77766286]
[1641203602830,0.0002,46955.0,46954.0,1.62766286]
[1641203604033,0.0002,46955.0,46954.0,1.77766286]
[1641203605281,0.1202,46955.0,46954.0,1.77766286]
[1641203605483,0.1702,46955.0,46954.0,1.77766286]
[1641203606481,0.0002,46955.0,46954.0,1.77766286]
[1641203607586,0.0002,46955.0,46954.0,1.53348743]
[1641203608825,0.0002,46955.0,46954.0,1.62986286]
[1641203609025,0.0002,46955.0,46954.0,1.72986286]
[1641203609630,0.0002,46955.0,46954.0,0.52105669]
[1641203610233,0.0002,46955.0,46954.0,1.7299294]
[1641203610427,0.0002,46955.0,46954.0,1.53355397]
[1641203611627,0.0002,46955.0,46954.0,0.32468126]
[1641203612076,0.0002,46955.0,46954.0,0.47468126]
[1641203612676,0.0002,46955.0,46954.0,1.18026391]
[1641203613876,0.0002,46955.0,46954.0,0.47468126]
[1641203616432,0.0002,46955.0,46954.0,0.32468126]
[1641203617629,0.0002,46955.0,46954.0,0.42105669]
[1641203617834,0.057398,46957.0,46955.0,0.05324014]
[1641203618032,0.057398,46957.0,46956.0,0.324666]
[1641203618633,0.057398,46957.0,46950.0,0.59592356]
[1641203618832,0.053242,46955.0,46951.0,0.324701]
[1641203619268,0.30695173,46957.0,46951.0,0.377942]
[1641203619471,0.30695173,46957.0,46953.0,0.10648688]
[1641203619668,0.0502,46957.0,46953.0,0.05324388]
[1641203619869,0.0002,46957.0,46951.0,0.309722]
[1641203620070,0.0002,46957.0,46952.0,0.324696]
[1641203620269,0.053442,46957.0,46952.0,0.377936]
[1641203620470,0.0002,46957.0,46954.0,0.05324157]
[1641203620671,0.0002,46957.0,46955.0,0.324674]
[1641203620872,0.0502,46958.0,46957.0,0.00278437]
[1641203622071,0.36075579,46958.0,46957.0,0.00278437]
[1641203622674,0.0502,46958.0,46957.0,0.00278437]
[1641203623344,0.50015644,46958.0,46957.0,0.00278437]
[1641203624741,0.50015644,46958.0,46957.0,7.354e-05]
[1641203628680,0.50015644,46958.0,46957.0,0.19848797]
[1641203628681,2.29937218,46958.0,46957.0,0.19848797]
[1641203628875,2.29937218,46958.0,46955.0,0.70558265]
[1641203628876,0.00121089,46956.0,46955.0,0.69127062]
[1641203629076,0.78653063,46956.0,46955.0,0.69127062]
[1641203629275,0.83653063,46956.0,46953.0,0.00825219]
[1641203629481,0.0012788,46954.0,46953.0,0.00825219]
[1641203629675,0.99282117,46954.0,46953.0,0.00825219]
[1641203629877,1.04282117,46954.0,46953.0,0.00825219]
[1641203630079,1.04282117,46954.0,46953.0,5.219e-05]
[1641203630282,0.75444403,46954.0,46946.0,0.32529355]
[1641203630543,0.0978,46954.0,46947.0,0.00825227]
[1641203630735,0.106521,46956.0,46947.0,0.00825227]
[1641203631136,0.106521,46956.0,46948.0,1.20912818]
[1641203631338,0.053246,46953.0,46950.0,0.053244]
[1641203631535,0.053246,46953.0,46951.0,0.324708]
[1641203632737,0.053242,46956.0,46952.0,0.04637543]
[1641203632940,0.00845227,46958.0,46955.0,0.04637543]
[1641203633236,0.00845227,46958.0,46957.0,1.12637543]
[1641203633436,0.00845227,46958.0,46957.0,1.45103343]
[1641203633738,0.00845227,46958.0,46957.0,1.55103343]
[1641203633936,0.00845227,46958.0,46957.0,0.47103343]
[1641203634396,0.0002,46958.0,46957.0,1.67985506]
[1641203635997,0.0002,46958.0,46957.0,0.47103343]
[1641203636800,0.0002,46958.0,46957.0,0.7841499]
[1641203636999,0.0002,46958.0,46957.0,0.47103343]
[1641203638825,0.0002,46958.0,46957.0,1.06053742]
[1641203639426,0.0002,46958.0,46957.0,1.05553742]
[1641203640231,0.0002,46958.0,46957.0,0.95553742]
[1641203641230,0.0002,46958.0,46957.0,0.36603343]
[1641203641629,0.0002,46958.0,46957.0,0.9572903]
[1641203641871,0.0002,46958.0,46957.0,1.0572903]
[1641203644575,0.0002,46958.0,46957.0,0.9572903]
[1641203645832,0.0002,46958.0,46957.0,0.94092144]
[1641203647135,0.0016,46959.0,46957.0,1.15792236]
[1641203647338,0.0014,46959.0,46958.0,0.68969332]
[1641203647635,0.0014,46959.0,46958.0,1.48233949]
[1641203647837,0.0014,46959.0,46958.0,1.14848057]
[1641203648036,0.0003,46960.0,46959.0,1.48]
[1641203648233,0.0004,46963.0,46961.0,0.314627]
[1641203648435,0.0004,46963.0,46962.0,0.39742457]
[1641203648639,0.0001,46963.0,46962.0,0.99787892]
[1641203648835,0.0004,46965.0,46963.0,1.21126629]
[1641203648836,0.0002,46964.0,46963.0,1.21126629]
[1641203649133,0.0002,46964.0,46963.0,0.52152186]
[1641203649406,0.0002,46967.0,46965.0,0.47549587]
[1641203649604,0.0002,46967.0,46966.0,0.39739257]
[1641203650003,0.0002,46967.0,46966.0,0.49739257]
[1641203650203,0.0002,46967.0,46966.0,0.85132049]
[1641203650904,0.0002,46967.0,46966.0,1.20089571]
[1641203651107,0.0002,46967.0,46966.0,0.84696779]
[1641203653926,0.0002,46967.0,46966.0,1.55415197]
[1641203654324,0.0002,46967.0,46966.0,0.84696779]
[1641203654824,0.00855197,46973.0,46966.0,2.07390889]
[1641203655030,0.00855197,46973.0,46969.0,1.58]
[1641203655228,0.00855197,46973.0,46971.0,1.674546]
[1641203655229,0.00845197,46973.0,46971.0,1.674546]
[1641203655427,0.00845197,46973.0,46972.0,1.97514357]
[1641203655632,0.00845197,46973.0,46972.0,1.14514357]
[1641203656227,0.0002,46973.0,46972.0,1.14514357]
[1641203656428,0.0002,46973.0,46972.0,2.35366796]
[1641203656781,0.0004,46975.0,46973.0,1.94]
[1641203656782,0.0002,46974.0,46973.0,1.94]
[1641203657079,0.0002,46974.0,46973.0,1.56513557]
[1641203657283,0.0003,46975.0,46974.0,1.02]
[1641203657480,0.0003,46975.0,46974.0,2.20258073]
[1641203657682,0.0003,46975.0,46974.0,2.30258073]
[1641203658480,0.0003,46975.0,46974.0,3.51110512]
[1641203658880,0.0003,46975.0,46974.0,3.16110512]
[1641203659080,0.0003,46975.0,46974.0,2.74110512]
[1641203659483,0.0003,46975.0,46974.0,2.35365196]
[1641203660729,0.0003,46975.0,46974.0,1.14512757]
[1641203660931,0.0003,46975.0,46974.0,1.52860784]
[1641203661330,0.0003,46975.0,46974.0,1.46763232]
[1641203662134,0.0003,46976.0,46975.0,1.65]
[1641203662331,0.0003,46976.0,46975.0,1.41511857]
[1641203662531,0.0003,46976.0,46975.0,1.14511857]
[1641203662733,0.0003,46976.0,46975.0,1.46257219]
[1641203663334,0.0001,46976.0,46975.0,1.46257219]
[1641203663534,0.0004,46978.0,46975.0,1.51257219]
[1641203663732,0.0004,46978.0,46976.0,0.72779316]
[1641203663932,0.0004,46978.0,46976.0,0.77559316]
[1641203664131,0.0004,46978.0,46976.0,0.87559316]
[1641203664370,0.0001,46977.0,46976.0,0.87685588]
[1641203665174,0.0004,46982.0,46979.0,0.314484]
[1641203665372,0.0004,46982.0,46981.0,2.88377309]
[1641203665571,0.0003,46982.0,46981.0,3.07507657]
[1641203665772,0.0001,46985.0,46983.0,0.31445]
[1641203666078,0.0001,46985.0,46984.0,1.63741821]
[1641203666272,0.0001,46985.0,46984.0,1.68741821]
[1641203666470,0.0001,46985.0,46984.0,1.78741821]
[1641203666688,0.0001,46986.0,46985.0,0.00122225]
[1641203666871,0.0001,46986.0,46985.0,0.99626082]
[1641203667070,0.0001,46986.0,46985.0,1.09626082]
[1641203667273,0.0001,46986.0,46985.0,0.99503857]
[1641203667871,0.0001,46986.0,46985.0,0.39723857]
[1641203669322,0.0001,46986.0,46985.0,0.49723857]
[1641203669723,0.0001,46986.0,46985.0,0.44943857]
[1641203670127,0.27171511,46994.0,46985.0,0.44943857]
[1641203670326,0.37484719,46998.0,46986.0,0.26567552]
[1641203670624,0.05444361,46998.0,46986.0,0.71904903]
[1641203670824,0.053206,46992.0,46986.0,0.71904903]
[1641203671028,0.053206,46992.0,46991.0,0.1004467]
[1641203671228,0.053206,46992.0,46991.0,0.4148307]
[1641203671428,0.053206,46992.0,46991.0,0.3148307]
[1641203672021,0.053206,46992.0,46991.0,0.4148307]
[1641203672222,0.053206,46992.0,46991.0,0.3148307]
[1641203672419,0.053206,46992.0,46991.0,0.4148307]
[1641203672619,0.053206,46992.0,46991.0,0.3148307]
[1641203672819,0.053206,46992.0,46991.0,0.5148307]
[1641203673023,0.0048,47001.0,46991.0,0.5148307]
[1641203673024,0.053192,46996.0,46991.0,0.6126307]
[1641203673222,0.053192,46996.0,46993.0,0.10638387]
[1641203673422,0.053192,46996.0,46995.0,0.1]
[1641203673622,0.053192,46996.0,46995.0,0.314352]
[1641203673825,0.053192,46996.0,46995.0,0.86392168]
[1641203674023,0.00826792,47000.0,46995.0,0.96392168]
[1641203674223,0.40141546,47005.0,46995.0,0.70276135]
[1641203674423,0.106385,46998.0,46995.0,0.46176927]
[1641203674626,0.156385,46998.0,46995.0,0.51496327]
[1641203674822,0.156385,46998.0,46995.0,0.153194]
[1641203675025,0.156385,46998.0,46994.0,0.31100005]
[1641203675533,0.156385,46998.0,46997.0,0.1]
[1641203675727,0.156385,46998.0,46994.0,0.31100005]
[1641203675927,7.728e-05,46997.0,46994.0,0.31100005]
[1641203676127,7.728e-05,46997.0,46995.0,0.314349]
[1641203676927,0.15264443,46998.0,46995.0,0.314349]
[1641203677131,0.15264443,46998.0,46994.0,0.31100005]
[1641203678032,0.30190232,46997.0,46994.0,0.31100005]
[1641203678232,0.30190232,46997.0,46993.0,0.1]
[1641203678432,0.053203,46996.0,46993.0,0.1]
[1641203678634,0.106401,46995.0,46989.0,0.1]
[1641203679133,0.156401,46995.0,46989.0,0.1]
[1641203679571,0.156401,46995.0,46990.0,0.26593662]
[1641203679773,0.156401,46995.0,46993.0,0.1]
[1641203681778,0.04329571,46994.0,46985.0,0.00826787]
[1641203681977,0.106416,46991.0,46985.0,0.00826787]
[1641203682177,0.03706716,46990.0,46986.0,0.414413]
[1641203682376,0.156416,46991.0,46989.0,0.00044667]
[1641203682577,0.156416,46991.0,46990.0,0.00044668]
[1641203683427,0.156416,46991.0,46990.0,0.31483868]
[1641203684529,0.156416,46991.0,46990.0,0.41483868]
[1641203686335,0.156416,46991.0,46990.0,0.51483868]
[1641203686534,0.15648173,46991.0,46990.0,0.51483868]
[1641203686773,0.15654746,46991.0,46990.0,0.51483868]
[1641203687075,0.15654746,46991.0,46990.0,1.21786006]
[1641203687276,0.15654746,46991.0,46990.0,1.11786006]
[1641203687474,0.15654746,46991.0,46990.0,1.21786006]
[1641203687675,0.15346881,46991.0,46990.0,1.21786006]
[1641203688274,0.15346881,46991.0,46990.0,1.11786006]
[1641203688475,0.15346881,46991.0,46990.0,1.21786006]
[1641203688674,0.15346881,46991.0,46990.0,1.11786006]
[1641203689079,0.15346881,46991.0,46990.0,0.41483868]
[1641203689274,0.05013146,46991.0,46990.0,0.41483868]
[1641203689478,0.05013146,46991.0,46990.0,0.72875349]
[1641203689675,0.05013146,46991.0,46990.0,0.40528536]
[1641203689976,0.05013146,46991.0,46990.0,0.50528536]
[1641203691437,0.05013146,46991.0,46990.0,0.40528536]
[1641203691739,0.05013146,46991.0,46990.0,0.50528536]
[1641203692137,0.05013146,46991.0,46990.0,0.70528536]
[1641203692340,0.05013146,46991.0,46990.0,1.03131747]
[1641203692738,0.05013146,46991.0,46990.0,0.70528536]
[1641203693238,0.05013146,46991.0,46990.0,0.40528536]
[1641203693438,0.05013146,46991.0,46990.0,0.92528536]
[1641203693637,0.05013146,46991.0,46990.0,1.22528536]
[1641203693843,0.05013146,46991.0,46990.0,1.54315534]
[1641203694041,0.05013146,46991.0,46990.0,1.59315534]
[1641203694515,0.00013146,46991.0,46990.0,1.59315534]
[1641203694918,0.00013146,46991.0,46990.0,2.09557534]
[1641203695117,0.00013146,46991.0,46990.0,1.77770536]
[1641203695317,0.00013146,46991.0,46990.0,2.76770536]
[1641203695517,0.00013146,46991.0,46990.0,3.47601212]
[1641203696217,0.00013146,46991.0,46990.0,2.48601212]
[1641203696520,0.00013146,46991.0,46990.0,1.76204536]
[1641203696922,0.00013146,46991.0,46990.0,1.41204536]
[1641203697217,0.00013146,46991.0,46990.0,1.97308536]
[1641203697419,0.00826794,46999.0,46990.0,1.97308536]
[1641203697622,0.05826794,46999.0,46994.0,0.25318558]
[1641203697822,0.05826794,46999.0,46998.0,0.97256873]
[1641203698046,0.05826794,46999.0,46998.0,0.504785]
[1641203698237,0.05,46999.0,46998.0,0.504785]
[1641203699040,0.00826777,47007.0,47000.0,0.28869272]
[1641203699238,0.106375,47004.0,47003.0,0.24124761]
[1641203699444,0.156375,47004.0,47003.0,0.03455989]
[1641203700240,0.29868462,47003.0,46992.0,0.69555151]
[1641203700441,0.32730531,46998.0,46993.0,0.25643974]
[1641203700644,0.37730531,46998.0,46993.0,0.25643974]
[1641203700840,0.37730531,46998.0,46991.0,0.58916902]
[1641203701342,0.41298105,46992.0,46991.0,0.58916902]
[1641203701541,0.05,46992.0,46991.0,0.33939289]
[1641203701790,0.05,46992.0,46991.0,0.72589554]
[1641203701995,0.0532,46994.0,46992.0,0.053199]
[1641203702195,0.156399,46995.0,46993.0,0.33938489]
[1641203702393,0.156399,46995.0,46993.0,0.304825]
[1641203703192,0.156399,46995.0,46991.0,0.39290198]
[1641203703391,0.156399,46995.0,46992.0,0.30483]
[1641203703590,0.156399,46995.0,46994.0,0.03455989]
[1641203703793,0.156399,46995.0,46994.0,0.33937689]